bitfinex-derivatives/quotes_ETHF0:USTF0_20250417
["timestamp","ask_amount","ask_price","bid_price","bid_amount"]
[1744869916728,2.4219,1600.9,1600.8,2.96857]
[1744869917624,1.5857,1600.9,1600.8,2.96857]
[1744869918533,0.8568,1601.0,1600.9,1.24939]
[1744869918723,1.5857,1601.1,1601.0,1.24931]
[1744869918929,1.6753,1601.3,1601.2,1.24916]
[1744869919129,3.261,1601.3,1601.2,1.24916]
[1744869919525,4.19324104,1601.4,1601.2,1.24916]
[1744869919727,1.75884104,1601.4,1601.3,2.90738]
[1744869922226,0.00624104,1601.4,1601.3,2.90738]
[1744869923220,1.73404104,1601.4,1601.3,2.90738]
[1744869924428,0.00624104,1601.4,1601.3,2.90738]
[1744869930127,0.00624104,1601.4,1601.3,1.6583]
[1744869930128,1.25524104,1601.4,1601.3,1.6583]
[1744869930329,0.00624104,1601.4,1601.3,2.90738]
[1744869930734,1.71904104,1601.4,1601.3,2.90738]
[1744869933138,0.00624104,1601.4,1601.3,2.90738]
[1744869934637,5.99,1601.8,1601.3,2.90738]
[1744869934638,3.2078,1602.3,1602.1,1.24842]
[1744869934940,1.61300477,1602.2,1602.1,1.24842]
[1744869935332,0.8081,1602.2,1602.1,1.24842]
[1744869935532,3.2078,1602.5,1602.3,1.24825]
[1744869935742,4.0159,1602.5,1602.3,1.24825]
[1744869935941,1.7135,1602.4,1602.3,1.24825]
[1744869936241,4.20036154,1602.6,1602.1,13.87261]
[1744869936242,0.00936154,1602.6,1602.1,13.87261]
[1744869936443,0.00936154,1602.6,1602.5,1.24814]
[1744869937239,0.00936154,1602.6,1602.5,2.93584]
[1744869937446,4.9213,1602.9,1602.8,1.24791]
[1744869937740,1.7135,1602.9,1602.8,1.24791]
[1744869937943,0.8081,1603.1,1603.0,1.24776]
[1744869938139,2.544,1603.1,1603.0,1.24776]
[1744869938340,1.7359,1603.1,1603.0,1.24776]
[1744869942146,5.99,1603.3,1602.9,9.11596154]
[1744869942448,1.7426,1603.3,1603.2,1.2476]
[1744869943142,4.189,1603.5,1603.3,1.24752]
[1744869943336,6.8428,1603.6,1603.1,6.327]
[1744869943540,8.5854,1603.6,1603.5,1.24737]
[1744869944046,8.5854,1603.6,1603.3,3.2078]
[1744869944047,0.8648,1603.8,1603.6,1.24725]
[1744869944244,2.5812,1603.8,1603.6,1.24725]
[1744869944648,1.7164,1603.7,1603.6,1.24725]
[1744869945238,3.2078,1604.1,1603.7,3.11801]
[1744869945538,20.85254597,1604.3,1604.1,1.2469]
[1744869945942,20.85254597,1604.3,1604.1,2.8953]
[1744869946434,25.40863838,1604.2,1604.0,3.2078]
[1744869946640,24.59663838,1604.2,1603.8,4.8562]
[1744869946935,8.82218,1604.2,1603.8,6.1033]
[1744869947137,7.5753,1604.2,1603.8,6.1033]
[1744869947448,8.82215,1604.2,1603.9,1.24703]
[1744869947745,8.82215,1604.2,1603.8,4.8562]
[1744869947746,7.5753,1604.2,1603.8,6.10328]
[1744869947944,10.7831,1604.2,1603.7,0.00936154]
[1744869948249,5.43395,1604.1,1603.8,3.2078]
[1744869948443,1.7027,1604.0,1603.8,4.45488]
[1744869949149,2.94971,1604.0,1603.8,3.2078]
[1744869949347,1.7027,1604.0,1603.8,4.45493]
[1744869949550,2.94968,1604.0,1603.7,1.25655154]
[1744869949942,1.7027,1604.0,1603.8,1.24713]
[1744869950342,2.94968,1604.0,1603.7,2.92062154]
[1744869950544,1.24709,1603.9,1603.7,0.00936154]
[1744869950842,1.7236,1603.8,1603.7,0.00936154]
[1744869951553,1.7236,1603.8,1603.7,1.25657154]
[1744869952344,10.299,1604.0,1603.9,1.24706]
[1744869952541,12.0226,1604.0,1603.9,1.24706]
[1744869952949,12.0226,1604.0,1603.8,4.45488]
[1744869953143,12.0226,1604.0,1603.8,3.2078]
[1744869953340,7.7136,1604.0,1603.9,1.24706]
[1744869953547,4.309,1604.5,1603.9,2.85606]
[1744869953849,1.7138,1604.4,1604.3,1.24672]
[1744869954244,3.2078,1604.9,1604.3,12.5158]
[1744869954445,4.9216,1604.9,1604.8,1.24636]
[1744869954748,1.24636,1604.8,1604.7,0.00936154]
[1744869954945,2.96016,1604.8,1604.7,0.00936154]
[1744869956448,3.76256,1604.8,1604.7,0.00936154]
[1744869956855,8.76256,1604.8,1604.7,0.00936154]
[1744869958153,14.75256,1604.8,1604.7,0.00936154]
[1744869958358,1.24674,1604.3,1604.1,4.45468]
[1744869958754,1.6016,1604.2,1604.1,4.45468]
[1744869959457,0.00936154,1604.3,1604.2,1.24682]
[1744869959655,0.00936154,1604.3,1604.2,2.91772]
[1744869960352,0.00936154,1604.3,1604.2,1.6709]
[1744869960558,3.00140154,1604.3,1604.2,1.6709]
[1744869960759,1.75466154,1604.3,1604.2,1.6709]
[1744869960960,1.75466154,1604.3,1604.2,2.91772]
[1744869961161,0.00936154,1604.3,1604.2,7.91772]
[1744869962563,2.99178,1604.7,1604.4,1.2466]
[1744869962763,1.7453,1604.7,1604.5,2.86487]
[1744869963061,2.99175,1604.7,1604.5,2.86487]
[1744869963462,1.2463,1604.9,1604.7,1.24638]
[1744869963654,2.898,1604.9,1604.8,1.6183]
[1744869964364,1.24625,1605.0,1604.8,2.86466]
[1744869964669,2.89795,1605.0,1604.9,1.6183]
[1744869965561,1.24605,1605.2,1605.0,1.24616]
[1744869965864,1.24616,1605.1,1604.9,1.25562154]
[1744869966064,1.7463,1605.2,1605.0,1.7229]
[1744869966265,1.6765,1605.5,1605.0,4.9307]
[1744869966465,3.4228,1605.5,1605.1,1.24606]
[1744869966662,1.246,1605.3,1605.2,1.7229]
[1744869967160,0.13820782,1605.6,1605.2,4.9307]
[1744869967359,1.24591,1605.4,1605.2,6.17671]
[1744869967960,1.24591,1605.4,1605.2,4.9307]
[1744869968156,2.99217,1605.5,1605.2,6.17673]
[1744869968866,1.7463,1605.5,1605.2,6.1767]
[1744869969058,2.99215,1605.5,1605.3,1.24595]
[1744869969260,1.38396782,1605.6,1605.4,2.85587]
[1744869969559,1.24581,1605.5,1605.4,1.61]
[1744869969768,1.38397782,1605.6,1605.4,2.85589]
[1744869970567,1.24581,1605.5,1605.4,1.61]
[1744869970767,2.94111,1605.5,1605.4,1.61]
[1744869971155,1.24597,1605.3,1605.2,3.2078]
[1744869971363,1.24612,1605.1,1605.0,4.0766]
[1744869971860,1.2462,1605.0,1604.9,0.00936154]
[1744869972060,2.8292,1605.0,1604.9,0.00936154]
[1744869974868,1.2462,1605.0,1604.9,0.00936154]
[1744869975069,0.8113,1605.4,1605.0,1.24615]
[1744869975265,1.24605,1605.2,1605.0,4.45395]
[1744869975573,1.24612,1605.1,1604.9,1.25558154]
[1744869975763,7.21081,1605.3,1605.1,1.24612]
[1744869975963,7.21081,1605.3,1605.1,4.45392]
[1744869976168,2.90681,1605.3,1605.2,1.6448]
[1744869976672,0.8113,1605.4,1605.2,2.89082]
[1744869976673,1.24594,1605.4,1605.2,2.89082]
[1744869976872,1.24594,1605.4,1605.2,3.68132]
[1744869977068,1.24594,1605.4,1605.3,1.6448]
[1744869977372,2.89674,1605.4,1605.3,1.6448]
[1744869977762,1.24597,1605.3,1605.2,0.7905]
[1744869977962,2.89677,1605.3,1605.2,0.7905]
[1744869978170,2.89677,1605.3,1605.2,2.5428]
[1744869978566,2.89677,1605.3,1605.2,1.7523]
[1744869979273,1.24615,1605.1,1604.9,9.55789154]
[1744869979479,1.6508,1605.2,1605.0,1.7523]
[1744869979674,1.24612,1605.1,1605.0,1.7523]
[1744869982080,1.6508,1605.2,1605.0,1.7523]
[1744869982382,9.24257782,1605.6,1605.1,4.4539]
[1744869982574,2.97774,1605.4,1605.2,2.87585]
[1744869982876,2.97774,1605.4,1605.3,1.6298]
[1744869983583,1.24589,1605.4,1605.3,2.87577]
[1744869984163,1.24585,1605.5,1605.3,2.87577]
[1744869984379,1.24585,1605.5,1605.4,1.6897]
[1744869985581,2.64480782,1605.6,1605.4,2.93559]
[1744869986480,3.89053782,1605.6,1605.5,1.7498]
[1744869987074,1.24585,1605.5,1605.3,5.30691]
[1744869987274,2.95375,1605.5,1605.4,1.7498]
[1744869988182,1.7079,1605.5,1605.4,2.99569]
[1744869988379,2.20649782,1605.6,1605.4,2.99564]
[1744869988582,1.38399782,1605.6,1605.5,1.7498]
[1744869989176,0.13820782,1605.6,1605.5,6.20341]
[1744869989579,0.13820782,1605.6,1605.5,10.65341]
[1744869991981,0.13820782,1605.6,1605.5,6.20341]
[1744869992882,1.75340782,1605.6,1605.5,6.20341]
[1744869994688,0.13820782,1605.6,1605.5,6.20341]
[1744869994985,1.38398782,1605.6,1605.4,7.10189]
[1744869995182,1.6152,1605.5,1605.4,7.10189]
[1744869995486,0.13820782,1605.6,1605.5,1.24581]
[1744869995682,1.24589,1605.4,1605.3,0.8532]
[1744869995880,1.24589,1605.4,1605.2,3.81544]
[1744869996081,1.6107,1605.3,1605.2,3.81544]
[1744869996381,1.6107,1605.3,1605.1,3.2078]
[1744869996584,1.6107,1605.3,1605.1,4.45392]
[1744869996585,2.85672,1605.3,1605.1,4.45392]
[1744869996784,2.85672,1605.3,1605.1,6.14782]
[1744869996986,1.6107,1605.2,1605.1,2.94002]
[1744869997284,1.24597,1605.3,1605.1,6.14777]
[1744869997687,6.8563,1605.5,1605.1,4.9017]
[1744869997885,8.467,1605.5,1605.3,1.24594]
[1744869998082,9.71287,1605.5,1605.3,1.24597]
[1744869998282,2.85659,1605.4,1605.3,1.24597]
[1744869998483,1.24597,1605.3,1605.2,2.93988]
[1744869998677,1.7002,1605.3,1605.0,0.837]
[1744869998982,1.7002,1605.3,1605.2,1.24605]
[1744869999183,2.94617,1605.3,1605.1,6.09676]
[1744869999386,1.24605,1605.2,1605.1,4.8507]
[1744869999586,1.24612,1605.1,1605.0,2.0832]
[1744869999786,1.2462,1605.0,1604.9,0.00936154]
[1744870000679,2.9464,1605.0,1604.9,0.00936154]
[1744870001582,1.7002,1605.0,1604.9,1.25564154]
[1744870001890,2.96984,1605.1,1604.9,2.94199154]
[1744870001891,2.96982,1605.1,1604.9,2.94199154]
[1744870002089,2.8655,1605.2,1605.0,1.2462]
[1744870002283,2.8655,1605.2,1605.0,3.7347]
[1744870002485,1.24612,1605.1,1605.0,2.4885]
[1744870002790,1.6194,1605.1,1605.0,3.7347]
[1744870002986,1.6194,1605.1,1605.0,2.4885]
[1744870003290,1.6194,1605.1,1604.9,3.21716154]
[1744870003291,1.2462,1605.0,1604.9,3.21716154]
[1744870003691,1.6194,1605.0,1604.9,6.14984154]
[1744870003891,2.8656,1605.0,1604.9,4.90356154]
[1744870004093,1.6194,1605.0,1604.9,1.25564154]
[1744870004294,4.45,1605.3,1604.9,3.21716154]
[1744870004590,2.86538,1605.3,1605.0,4.66314]
[1744870004792,2.86538,1605.3,1605.1,1.7132]
[1744870004990,1.6901,1605.2,1605.1,1.7132]
[1744870005193,2.93615,1605.2,1605.1,1.7132]
[1744870005593,2.93615,1605.2,1605.0,2.97676]
[1744870005594,1.24612,1605.1,1605.0,1.7306]
[1744870005785,2.93622,1605.1,1605.0,1.7306]
[1744870005987,2.93622,1605.1,1605.0,0.8576]
[1744870006286,1.2462,1605.0,1604.9,3.21716154]
[1744870006593,1.6901,1605.0,1604.9,6.17664154]
[1744870006894,2.9363,1605.0,1604.9,3.21716154]
[1744870007093,1.6901,1605.0,1604.9,4.46344154]
[1744870007297,1.6901,1605.0,1604.9,6.17664154]
[1744870007990,2.9363,1605.0,1604.9,0.00936154]
[1744870008606,2.9363,1605.0,1604.9,1.60006154]
[1744870009196,4.45,1605.2,1604.9,4.80786154]
[1744870009389,4.45,1605.2,1605.0,1.24617]
[1744870009390,7.43008,1605.2,1605.0,1.24617]
[1744870009590,7.43008,1605.2,1605.1,1.5907]
[1744870010797,0.8364,1605.4,1605.1,4.7985]
[1744870011099,3.75692,1605.4,1605.2,1.246]
[1744870011300,3.75692,1605.4,1605.3,1.7197]
[1744870011503,1.24585,1605.5,1605.3,2.96559]
[1744870011693,3.05858782,1605.6,1605.4,1.24587]
[1744870011892,1.24581,1605.5,1605.4,1.7197]
[1744870012294,1.24589,1605.4,1605.3,3.2078]
[1744870012494,1.24589,1605.4,1605.3,1.7197]
[1744870013501,1.24605,1605.2,1605.0,7.90565]
[1744870013695,1.24612,1605.1,1605.0,6.6595]
[1744870013898,1.2462,1605.0,1604.9,3.21716154]
[1744870015193,1.2462,1605.0,1604.9,0.00936154]
[1744870015399,2.0469,1605.0,1604.9,0.00936154]
[1744870018302,1.2462,1605.0,1604.9,0.00936154]
[1744870018503,2.86477,1605.1,1604.9,2.98064154]
[1744870018704,2.86477,1605.1,1604.9,4.94216154]
[1744870018905,2.86477,1605.1,1605.0,1.725]
[1744870019105,1.2462,1605.0,1604.9,0.00936154]
[1744870019304,2.9009,1605.0,1604.9,0.00936154]
[1744870021204,1.24643,1604.7,1604.6,1.6431]
[1744870021402,3.1159,1604.8,1604.3,4.846]
[1744870021605,3.1159,1604.8,1604.1,4.45464]
[1744870021606,1.24677,1604.3,1604.1,4.45464]
[1744870021902,1.24674,1604.3,1604.2,1.6431]
[1744870022405,2.4622,1604.5,1604.3,1.24672]
[1744870022608,2.4622,1604.5,1604.2,2.88987]
[1744870022803,3.70881,1604.5,1604.3,1.24671]
[1744870023007,4.434,1604.6,1604.4,2.91727]
[1744870023210,7.38036,1604.6,1604.4,2.91727]
[1744870023506,7.38036,1604.6,1604.5,1.6706]
[1744870023708,1.24665,1604.5,1604.3,1.2467]
[1744870023898,2.94645,1604.5,1604.4,1.6706]
[1744870024205,1.6998,1604.5,1604.4,1.6706]
[1744870024402,1.24669,1604.4,1604.2,1.2468]
[1744870024709,1.24674,1604.3,1604.2,1.6706]
[1744870025209,1.24682,1604.2,1604.1,0.00936154]
[1744870025396,1.24679,1604.3,1604.1,1.25624154]
[1744870025602,0.8667,1604.4,1604.2,1.24682]
[1744870025801,0.8667,1604.4,1604.3,1.6706]
[1744870026002,3.73397,1604.4,1604.3,1.6706]
[1744870028905,2.4873,1604.4,1604.1,4.09236154]
[1744870029109,1.24682,1604.2,1604.1,2.49446154]
[1744870029407,1.6052,1604.3,1604.2,1.24682]
[1744870029608,1.6052,1604.3,1604.2,2.85672]
[1744870029808,2.85194,1604.3,1604.2,1.6099]
[1744870030210,1.6052,1604.3,1604.2,2.85672]
[1744870030911,2.85194,1604.3,1604.2,1.6099]
[1744870031405,1.6052,1604.3,1604.2,1.6099]
[1744870031909,2.85194,1604.3,1604.2,1.6099]
[1744870032411,1.24682,1604.2,1604.1,0.00936154]
[1744870032604,3.81902,1604.2,1604.1,0.00936154]
[1744870037715,3.81902,1604.2,1604.1,1.70866154]
[1744870038215,3.81902,1604.2,1604.1,0.00936154]
[1744870040014,1.2468,1604.3,1604.1,1.25622154]
[1744870040202,1.2468,1604.3,1604.2,1.6653]
[1744870040615,2.9666,1604.3,1604.2,1.6653]
[1744870041816,1.2468,1604.3,1604.2,1.6653]
[1744870042009,3.7131,1604.4,1604.2,2.4797]
[1744870042317,1.24674,1604.3,1604.2,2.4797]
[1744870043117,1.24674,1604.3,1604.2,6.93432]
[1744870044408,1.24674,1604.3,1604.2,2.4797]
[1744870044603,2.99304,1604.3,1604.2,2.4797]
[1744870046314,2.99304,1604.3,1604.2,3.72652]
[1744870046518,2.99304,1604.3,1604.2,2.4797]
[1744870047418,2.99304,1604.3,1604.2,3.72652]
[1744870047618,2.99304,1604.3,1604.2,2.4797]
[1744870048119,0.8667,1604.4,1604.3,1.24674]
[1744870048319,3.82487,1604.4,1604.3,2.88374]
[1744870048519,3.82487,1604.4,1604.3,1.637]
[1744870052422,3.82487,1604.4,1604.3,2.88374]
[1744870052718,3.82487,1604.4,1604.3,1.637]
[1744870053909,3.82487,1604.4,1604.3,2.88374]
[1744870054312,3.82487,1604.4,1604.3,1.637]
[1744870054620,3.82487,1604.4,1604.3,2.88374]
[1744870055022,3.82487,1604.4,1604.3,1.637]
[1744870058519,1.24674,1604.3,1604.2,0.8144]
[1744870058726,1.24674,1604.3,1604.2,2.4006]
[1744870058918,2.87884,1604.3,1604.2,2.4006]
[1744870062225,1.24682,1604.2,1604.1,0.00936154]
[1744870062428,2.85242,1604.2,1604.1,0.00936154]
[1744870063225,2.85242,1604.2,1604.1,2.84786154]
[1744870063420,2.85242,1604.2,1604.1,1.60096154]
[1744870063929,1.24679,1604.3,1604.1,2.84786154]
[1744870064130,1.24679,1604.3,1604.2,1.5916]
[1744870065831,1.24682,1604.2,1604.1,0.00936154]
[1744870066025,1.24682,1604.2,1604.1,1.59956154]
[1744870067031,1.24682,1604.2,1604.1,2.84646154]
[1744870067222,1.24682,1604.2,1604.1,1.59956154]
[1744870070729,2.84011,1604.3,1604.1,2.84646154]
[1744870071326,2.84011,1604.3,1604.2,1.7465]
[1744870071528,1.24682,1604.2,1604.1,0.00936154]
[1744870071729,2.91062,1604.2,1604.1,0.00936154]
[1744870074134,4.56112,1604.2,1604.1,0.00936154]
[1744870078837,7.76892,1604.2,1604.1,0.00936154]
[1744870079230,4.56112,1604.2,1604.1,0.00936154]
[1744870084729,1.24706,1603.9,1603.8,0.7914]
[1744870085737,1.24713,1603.8,1603.7,3.69615154]
[1744870086035,1.24713,1603.8,1603.7,2.44896154]
[1744870086234,2.98773,1603.8,1603.7,2.44896154]
[1744870086437,2.98773,1603.8,1603.7,3.69617154]
[1744870087939,2.98773,1603.8,1603.7,2.44896154]
[1744870088641,2.98773,1603.8,1603.7,0.00936154]
[1744870088844,8.90089,1603.8,1603.2,22.8178106]
[1744870089033,1.24744,1603.4,1603.3,1.7521]
[1744870089939,2.87112,1603.5,1603.3,2.9996]
[1744870090144,2.87112,1603.5,1603.4,1.5957]
[1744870091045,1.6237,1603.5,1603.4,1.5957]
[1744870091244,1.24731,1603.6,1603.4,2.8431]
[1744870091435,1.24731,1603.6,1603.5,0.866]
[1744870091741,1.24731,1603.6,1603.5,2.4617]
[1744870092143,2.11891,1603.6,1603.5,2.4617]
[1744870092344,2.11891,1603.6,1603.5,1.5957]
[1744870092543,1.24744,1603.4,1603.3,4.051]
[1744870092738,1.24744,1603.4,1603.3,5.6467]
[1744870093242,2.91693,1603.5,1603.3,6.8942]
[1744870093440,2.91693,1603.5,1603.4,1.6919]
[1744870094845,2.11894,1603.6,1603.4,2.93934]
[1744870095238,2.11894,1603.6,1603.5,1.6919]
[1744870095438,1.24734,1603.6,1603.5,1.6919]
[1744870096339,1.24744,1603.5,1603.3,4.051]
[1744870096543,2.93014,1603.5,1603.4,1.6364]
[1744870097547,1.24744,1603.4,1603.3,4.051]
[1744870097743,1.24744,1603.4,1603.3,5.6874]
[1744870097744,2.93014,1603.4,1603.3,5.6874]
[1744870098651,3.78904,1603.4,1603.3,5.6874]
[1744870101646,2.93014,1603.4,1603.3,5.6874]
[1744870102246,5.5294,1603.5,1603.3,6.93492]
[1744870102445,1.2474,1603.5,1603.3,5.6874]
[1744870102642,1.2474,1603.5,1603.4,1.5884]
[1744870104856,2.5996,1603.6,1603.4,1.5884]
[1744870104857,3.84693,1603.6,1603.4,2.83584]
[1744870105158,1.24737,1603.5,1603.4,2.83584]
[1744870105357,1.24737,1603.5,1603.4,1.5884]
[1744870106057,1.24737,1603.5,1603.4,2.83584]
[1744870106258,2.5996,1603.6,1603.4,2.83584]
[1744870106458,3.84689,1603.6,1603.5,1.7159]
[1744870106659,3.84689,1603.6,1603.5,2.5134]
[1744870108252,5.71786,1603.6,1603.3,4.051]
[1744870108557,1.24744,1603.4,1603.3,4.051]
[1744870108756,1.24752,1603.3,1603.2,3.57058154]
[1744870108956,2.86682,1603.3,1603.2,3.57058154]
[1744870109561,2.86682,1603.3,1603.2,1.09678154]
[1744870110862,3.71592,1603.3,1603.2,1.09678154]
[1744870111058,14.70592,1603.3,1603.2,1.09678154]
[1744870111262,16.57727,1603.3,1602.7,3.2078]
[1744870111469,1.24791,1602.8,1602.7,6.6115]
[1744870112159,1.24791,1602.8,1602.7,3.4037]
[1744870112755,2.84221,1602.8,1602.7,3.4037]
[1744870113564,1.24799,1602.7,1602.6,0.00936154]
[1744870113773,2.84229,1602.7,1602.6,1.71376154]
[1744870116981,2.84229,1602.7,1602.6,0.00936154]
[1744870117680,4.53959,1602.7,1602.6,0.00936154]
[1744870120583,8.69077,1602.8,1602.6,3.72213154]
[1744870120883,8.69077,1602.8,1602.7,2.4543]
[1744870121083,9.51977,1602.8,1602.7,1.6366]
[1744870121284,1.24799,1602.7,1602.6,0.83746154]
[1744870121487,2.93759,1602.7,1602.6,0.00936154]
[1744870130994,1.24822,1602.4,1602.3,0.8177]
[1744870131289,3.12026,1602.6,1602.2,4.0359]
[1744870131290,1.2483,1602.3,1602.2,4.0359]
[1744870131589,2.8723,1602.3,1602.2,4.0359]
[1744870132294,2.8723,1602.3,1602.2,3.2078]
[1744870133488,2.8723,1602.3,1602.2,4.89]
[1744870133691,2.09617,1602.4,1602.2,6.13838]
[1744870133886,1.24827,1602.4,1602.3,1.6822]
[1744870134086,1.24838,1602.2,1602.1,0.81696154]
[1744870134283,1.24838,1602.2,1602.1,3.36816154]
[1744870134483,1.7314,1602.4,1602.1,3.36816154]
[1744870134697,1.2483,1602.3,1602.2,1.6822]
[1744870134991,0.50982378,1603.9,1603.7,1.24721]
[1744870135191,1.7314,1604.7,1603.8,3.11784]
[1744870135395,9.4462,1604.7,1604.5,3.2078]
[1744870135696,6.2384,1604.7,1604.5,4.45439]
[1744870135891,6.2384,1604.7,1604.6,1.7182]
[1744870136190,34.81117144,1604.8,1604.6,1.7182]
[1744870136396,34.81117144,1604.8,1604.7,4.45423]
[1744870136397,41.04957144,1604.8,1604.7,4.45423]
[1744870136894,41.04957144,1604.8,1604.7,5.0385077]
[1744870137089,41.04957144,1604.8,1604.7,3.7920777]
[1744870137282,41.04957144,1604.8,1604.7,5.0385077]
[1744870137488,41.04957144,1604.8,1604.7,6.7567077]
[1744870137688,0.00936154,1604.8,1604.7,11.7567077]
[1744870137995,0.00936154,1604.8,1604.7,12.64386523]
[1744870138193,6.2055,1605.5,1604.7,11.39743523]
[1744870138385,9.4462,1605.4,1604.9,1.24628]
[1744870138590,6.2384,1605.4,1605.3,4.45377]
[1744870138788,0.13820782,1605.6,1605.3,4.45377]
[1744870138986,0.13820782,1605.6,1605.5,3.2078]
[1744870139394,9.58440782,1605.6,1605.5,3.2078]
[1744870140492,10.83013782,1605.6,1605.5,3.2078]
[1744870140691,12.57503782,1605.6,1605.5,3.2078]
[1744870141299,17.07003782,1605.6,1605.5,3.2078]
[1744870142096,15.82430782,1605.6,1605.5,3.2078]
[1744870142297,17.07003782,1605.6,1605.5,3.2078]
[1744870142893,15.82430782,1605.6,1605.5,3.2078]
[1744870143291,17.07003782,1605.6,1605.5,3.2078]
[1744870144097,15.82430782,1605.6,1605.5,3.2078]
[1744870144293,15.82430782,1605.6,1605.5,4.9445]
[1744870145397,8.12150782,1605.6,1605.5,4.9445]
[1744870145597,7.62233782,1605.6,1605.5,4.9445]
[1744870145896,1.2461,1605.2,1604.9,3.2078]
[1744870146103,3.2078,1605.1,1604.9,4.45405]
[1744870146303,6.2384,1605.1,1605.0,2.8663]
[1744870146602,4.493,1605.3,1605.1,1.24609]
[1744870146903,1.24592,1605.4,1605.2,4.8279]
[1744870147091,9.4462,1605.3,1605.2,4.8279]
[1744870147498,6.2384,1605.3,1605.2,4.8279]
[1744870148095,7.48437,1605.3,1605.2,4.8279]
[1744870148295,6.2384,1605.3,1605.2,4.8279]
[1744870148494,7.48437,1605.3,1605.2,4.8279]
[1744870148695,1.24611,1605.2,1605.0,3.21716154]
[1744870149000,4.45392,1605.1,1605.0,3.21716154]
[1744870149196,6.2384,1605.1,1605.0,4.89396154]
[1744870150706,0.13820782,1605.6,1605.0,9.89396154]
[1744870150894,1.38396782,1605.6,1605.5,3.2078]
[1744870151205,1.38393782,1605.6,1605.5,3.2078]
[1744870151402,10.83013782,1605.6,1605.5,3.2078]
[1744870153696,6.06412806,1605.6,1605.5,3.2078]
[1744870153997,8.91255806,1605.6,1605.5,3.2078]
[1744870154204,1.24581,1605.5,1605.4,1.6226]
[1744870154402,8.88843806,1605.5,1605.4,1.6226]
[1744870154605,5.68063806,1605.5,1605.4,1.6226]
[1744870155303,1.24589,1605.4,1605.3,3.2078]
[1744870155498,8.88851806,1605.4,1605.3,3.2078]
[1744870155700,7.64262806,1605.4,1605.3,3.2078]
[1744870156205,2.85632806,1605.4,1605.3,4.45377]
[1744870156509,1.24577,1605.6,1605.4,1.24587]
[1744870156804,1.24577,1605.6,1605.5,4.9253]
[1744870157005,4.45357,1605.6,1605.5,4.9253]
[1744870157193,7.20147317,1605.6,1605.5,4.9253]
[1744870157909,3.99367317,1605.6,1605.5,4.9253]
[1744870159809,7.20147317,1605.6,1605.5,4.9253]
[1744870162113,0.00936154,1605.7,1605.6,1.24573]
[1744870162310,0.00936154,1605.7,1605.6,1.82973567]
[1744870162613,2.75726471,1605.7,1605.6,1.82973567]
[1744870163516,2.75726471,1605.7,1605.6,2.69379868]
[1744870163713,2.75726471,1605.7,1605.6,2.69379983]
[1744870164204,4.00292471,1605.7,1605.6,2.69379983]
[1744870164614,2.74305227,1605.7,1605.6,2.69379983]
[1744870164915,2.74305227,1605.7,1605.6,3.44738008]
[1744870165216,3.98871227,1605.7,1605.6,3.44738008]
[1744870165403,3.98871227,1605.7,1605.6,2.86337326]
[1744870165610,3.98871227,1605.7,1605.6,3.44737796]
[1744870167212,3.98871227,1605.7,1605.6,1.99931025]
[1744870167419,2.74305227,1605.7,1605.6,3.29147624]
[1744870169120,2.74305227,1605.7,1605.6,3.29188413]
[1744870169414,3.98871227,1605.7,1605.6,3.29188413]
[1744870169614,3.98871227,1605.7,1605.6,2.04615413]
[1744870170121,3.98871227,1605.7,1605.6,3.29188413]
[1744870172215,5.70301227,1605.7,1605.6,2.04615413]
[1744870172419,5.70301227,1605.7,1605.6,1.24595149]
[1744870172420,8.91081227,1605.7,1605.6,1.24595149]
[1744870172820,13.91081227,1605.7,1605.6,1.24578316]
[1744870173121,1.24605,1605.2,1605.1,3.2078]
[1744870173522,7.19690227,1605.2,1605.1,3.2078]
[1744870173723,8.91120227,1605.2,1605.1,3.2078]
[1744870173915,1.24612,1605.1,1605.0,0.00936154]
[1744870174111,8.91127227,1605.1,1605.0,0.00936154]
[1744870174411,8.91127227,1605.1,1604.7,8.3467]
[1744870174412,1.24636,1604.8,1604.7,9.0638]
[1744870174617,4.45416,1604.8,1604.7,3.2078]
[1744870174813,7.19721227,1604.8,1604.7,3.2078]
[1744870175013,8.91151227,1604.8,1604.7,3.2078]
[1744870177020,0.00936154,1604.9,1604.8,1.24636]
[1744870177324,0.00936154,1604.9,1604.8,2.45111476]
[1744870177620,0.00936154,1604.9,1604.8,3.69748554]
[1744870177822,0.00936154,1604.9,1604.8,9.55350125]
[1744870178122,0.00936154,1604.9,1604.8,8.30714588]
[1744870178317,0.00936154,1604.9,1604.8,7.5082]
[1744870178723,0.00936154,1604.9,1604.8,8.75456]
[1744870179119,0.00936154,1604.9,1604.8,9.55332105]
[1744870179520,0.00936154,1604.9,1604.8,9.55316372]
[1744870180025,4.56,1605.4,1605.2,1.24605]
[1744870180224,4.56,1605.4,1605.3,1.711]
[1744870180417,5.95085227,1605.4,1605.3,1.711]
[1744870180725,2.74305227,1605.4,1605.3,1.711]
[1744870181526,5.95085227,1605.4,1605.2,3.2078]
[1744870181727,8.94922227,1605.3,1605.2,3.2078]
[1744870181925,6.20617,1605.3,1605.2,4.8312]
[1744870182117,8.94922227,1605.3,1605.2,4.8312]
[1744870182317,7.70325227,1605.3,1605.2,6.07725]
[1744870182517,8.94922227,1605.3,1605.2,4.8312]
[1744870183723,8.94922227,1605.3,1605.2,3.2078]
[1744870185127,8.94922227,1605.3,1605.2,5.32297615]
[1744870186526,8.94922227,1605.3,1605.2,6.56902615]
[1744870186728,1.25522154,1605.5,1605.3,1.24592]
[1744870187028,1.25522154,1605.5,1605.4,4.8491]
[1744870187327,2.94762154,1605.5,1605.4,4.8491]
[1744870187525,8.89847381,1605.5,1605.4,4.8491]
[1744870190524,2.75241381,1605.5,1605.4,4.8491]
[1744870190722,2.75241381,1605.5,1605.4,6.56848387]
[1744870191129,2.75241381,1605.5,1605.4,6.56848633]